Department family,Entity,Date,Expense type,Expense area,Supplier,Transaction number,Amount
Department of Health,Leicestershire Partnership NHS Trust,04/05/21,WIP Project Not in BS - Transport and Equipment,Work in Progress,GBUK HEALTHCARE,0000343506,116482.80
Department of Health,Leicestershire Partnership NHS Trust,04/05/21,Unitary Payment,"The Agnes Unit (AKA Assessment and Treatment Centre) (P85, LPT)",ARDEN PARTNERSHIP (LEICESTER),SI0071,117341.91
Department of Health,Leicestershire Partnership NHS Trust,04/05/21,External Audit Fees,Finance Department,KPMG CONSULTING,5502256124,28500.00
Department of Health,Leicestershire Partnership NHS Trust,04/05/21,Services / Recharges from NHS Trusts,Inter Unit I & E Distribution,UHL NHS TRUST (RWE),L0250329,144898.59
Department of Health,Leicestershire Partnership NHS Trust,05/05/21,Payroll Deductions -Salary Sacrifice Cars Scheme,Balance Sheet Collection,TUSKER,48108,28571.11
Department of Health,Leicestershire Partnership NHS Trust,05/05/21,HIS LPT Costs,HIS,THE PHOENIX PARTNERSHIP,12215,1017261.71
Department of Health,Leicestershire Partnership NHS Trust,05/05/21,Contract : Accomodation,Out of County Income - Inpateints Project,TURNING POINT,SI-TPS-00032986,50809.67
Department of Health,Leicestershire Partnership NHS Trust,05/05/21,Crs_NHS_LT1y -Resus Inventory Supplied.,Balance Sheet Collection,SUPPLY CHAIN CO LTD,1122015644,29482.18
Department of Health,Leicestershire Partnership NHS Trust,05/05/21,Rent,"St Peters Health Center (Part 1st and 2nd floors) (P66, LPT)",LEICESTER LIFT CO,LEP1/SI0752,27433.45
Department of Health,Leicestershire Partnership NHS Trust,05/05/21,External Consultancy Fees,Covid Vaccination Workforce Bureau,SEYMOUR JOHN PUB SERV LTD,P1710,257347.20
Department of Health,Leicestershire Partnership NHS Trust,05/05/21,External Data Processing / Storage,Records & information Governance,H COATES LTD/TA C&V DATA,4005001,32287.63
Department of Health,Leicestershire Partnership NHS Trust,05/05/21,NURSE - BAND 5 - AGENCY,Beechwood Ward,HCL NURSING,HNSI0000675,1955.92
Department of Health,Leicestershire Partnership NHS Trust,05/05/21,NURSE - BAND 5 - AGENCY,City Planned Care - East,HCL NURSING,HNSI0000675,11847.52
Department of Health,Leicestershire Partnership NHS Trust,05/05/21,NURSE - BAND 5 - AGENCY,City Planned Care - West,HCL NURSING,HNSI0000675,16829.63
Department of Health,Leicestershire Partnership NHS Trust,05/05/21,Nurse - Band 6 -Agency,City West CMHT MHSOP,HCL NURSING,HNSI0000675,2116.22
Department of Health,Leicestershire Partnership NHS Trust,05/05/21,NURSE - BAND 2 - AGENCY,Clarendon Ward,HCL NURSING,HNSI0000675,1469.47
Department of Health,Leicestershire Partnership NHS Trust,05/05/21,NURSE - BAND 5 - AGENCY,Clarendon Ward,HCL NURSING,HNSI0000675,346.74
Department of Health,Leicestershire Partnership NHS Trust,05/05/21,NURSE - BAND 2 - AGENCY,Coalville Snibston Ward,HCL NURSING,HNSI0000675,1619.47
Department of Health,Leicestershire Partnership NHS Trust,05/05/21,NURSE - BAND 2 - AGENCY,Coalville Ward 2,HCL NURSING,HNSI0000675,1464.41
Department of Health,Leicestershire Partnership NHS Trust,05/05/21,NURSE - BAND 2 - AGENCY,Coleman Ward,HCL NURSING,HNSI0000675,5409.13
Department of Health,Leicestershire Partnership NHS Trust,05/05/21,NURSE - BAND 5 - AGENCY,Coleman Ward,HCL NURSING,HNSI0000675,4558.46
Department of Health,Leicestershire Partnership NHS Trust,05/05/21,NURSE - BAND 2 - AGENCY,Dalgliesh Ward,HCL NURSING,HNSI0000675,1526.11
Department of Health,Leicestershire Partnership NHS Trust,05/05/21,NURSE - BAND 5 - AGENCY,Dalgliesh Ward,HCL NURSING,HNSI0000675,386.05
Department of Health,Leicestershire Partnership NHS Trust,05/05/21,NURSE - BAND 2 - AGENCY,Gwendolen Ward,HCL NURSING,HNSI0000675,1612.97
Department of Health,Leicestershire Partnership NHS Trust,05/05/21,NURSE - BAND 5 - AGENCY,Gwendolen Ward,HCL NURSING,HNSI0000675,3329.33
Department of Health,Leicestershire Partnership NHS Trust,05/05/21,NURSE - BAND 2 - AGENCY,H&B Comm Hosp East Ward,HCL NURSING,HNSI0000675,2452.07
Department of Health,Leicestershire Partnership NHS Trust,05/05/21,NURSE - BAND 5 - AGENCY,H&B Comm Hosp East Ward,HCL NURSING,HNSI0000675,3454.52
Department of Health,Leicestershire Partnership NHS Trust,05/05/21,NURSE - BAND 2 - AGENCY,H&B Comm Hosp North Ward,HCL NURSING,HNSI0000675,2232.33
Department of Health,Leicestershire Partnership NHS Trust,05/05/21,NURSE - BAND 5 - AGENCY,H&B Comm Hosp North Ward,HCL NURSING,HNSI0000675,1650.53
Department of Health,Leicestershire Partnership NHS Trust,05/05/21,NURSE - BAND 2 - AGENCY,Non Recurrent 2012/13,HCL NURSING,HNSI0000675,3522.22
Department of Health,Leicestershire Partnership NHS Trust,05/05/21,NURSE - BAND 5 - AGENCY,Non Recurrent 2012/13,HCL NURSING,HNSI0000675,376.69
Department of Health,Leicestershire Partnership NHS Trust,05/05/21,NURSE - BAND 2 - AGENCY,Rutland Ward Nursing,HCL NURSING,HNSI0000675,269.49
Department of Health,Leicestershire Partnership NHS Trust,05/05/21,NURSE - BAND 5 - AGENCY,Rutland Ward Nursing,HCL NURSING,HNSI0000675,1499.73
Department of Health,Leicestershire Partnership NHS Trust,05/05/21,Nurse - Band 6 -Agency,South Leicestershire CMHT MHSOP,HCL NURSING,HNSI0000675,767.53
Department of Health,Leicestershire Partnership NHS Trust,05/05/21,NURSE - BAND 2 - AGENCY,St Lukes Stroke Ward,HCL NURSING,HNSI0000675,297.75
Department of Health,Leicestershire Partnership NHS Trust,05/05/21,NURSE - BAND 5 - AGENCY,St Lukes Stroke Ward,HCL NURSING,HNSI0000675,2377.11
Department of Health,Leicestershire Partnership NHS Trust,05/05/21,NURSE - BAND 2 - AGENCY,St Lukes Ward 3,HCL NURSING,HNSI0000675,894.72
Department of Health,Leicestershire Partnership NHS Trust,05/05/21,NURSE - BAND 2 - AGENCY,Wakerley Ward,HCL NURSING,HNSI0000675,365.43
Department of Health,Leicestershire Partnership NHS Trust,05/05/21,NURSE - BAND 5 - AGENCY,Wakerley Ward,HCL NURSING,HNSI0000675,5386.81
Department of Health,Leicestershire Partnership NHS Trust,05/05/21,NURSE - BAND 2 - AGENCY,Welford Ward,HCL NURSING,HNSI0000675,195.47
Department of Health,Leicestershire Partnership NHS Trust,05/05/21,Legal Fees,Chief Executives Office,CARE QUALITY COMM,42914195,201413.00
Department of Health,Leicestershire Partnership NHS Trust,06/05/21,HR / Payroll Services,HR Employment Services,LINCOLNSHIRE PART NHSFT(RP7),2000021213,29360.83
Department of Health,Leicestershire Partnership NHS Trust,06/05/21,Rent,"Syston Health Centre (New Building) (P127, LPT)",PHIP (5) LIMITED,LINV521521,37500.00
Department of Health,Leicestershire Partnership NHS Trust,07/05/21,Network Costs - WAN Maint,HIS Infrastructure,IVANTI UK LIMITED,90029306,65275.16
Department of Health,Leicestershire Partnership NHS Trust,07/05/21,Med Trainees - FY1,Medical Trainees,UHL NHS TRUST (RWE),L0250441,29833.28
Department of Health,Leicestershire Partnership NHS Trust,10/05/21,Computer EquipmentMaintenance,HIS Infrastructure,TP LEASING LTD,MI/0033977/01,57274.19
Department of Health,Leicestershire Partnership NHS Trust,10/05/21,Nurse - Band 6 -Agency,AMH - Central Access Point,HCL NURSING,HNSI0000680,1280.34
Department of Health,Leicestershire Partnership NHS Trust,10/05/21,Nurse - Band 6 -Agency,Adult City East CMHT - Merlyn Vaz,HCL NURSING,HNSI0000680,3172.72
Department of Health,Leicestershire Partnership NHS Trust,10/05/21,Nurse - Band 6 -Agency,Adult County Charnwood CMHT - Loughborough Base,HCL NURSING,HNSI0000680,1069.97
Department of Health,Leicestershire Partnership NHS Trust,10/05/21,Nurse - Band 6 -Agency,Adult County West Leicestershire CMHT,HCL NURSING,HNSI0000680,1348.16
Department of Health,Leicestershire Partnership NHS Trust,10/05/21,NURSE - BAND 2 - AGENCY,Agnes Unit Management,HCL NURSING,HNSI0000680,18078.12
Department of Health,Leicestershire Partnership NHS Trust,10/05/21,NURSE - BAND 5 - AGENCY,Agnes Unit Management,HCL NURSING,HNSI0000680,8170.27
Department of Health,Leicestershire Partnership NHS Trust,10/05/21,NURSE - BAND 2 - AGENCY,Ashby Ward (Bradgate Unit),HCL NURSING,HNSI0000680,956.91
Department of Health,Leicestershire Partnership NHS Trust,10/05/21,NURSE - BAND 5 - AGENCY,Ashby Ward (Bradgate Unit),HCL NURSING,HNSI0000680,426.71
Department of Health,Leicestershire Partnership NHS Trust,10/05/21,NURSE - BAND 2 - AGENCY,Aston Ward (Bradgate Unit),HCL NURSING,HNSI0000680,3056.52
Department of Health,Leicestershire Partnership NHS Trust,10/05/21,NURSE - BAND 5 - AGENCY,Aston Ward (Bradgate Unit),HCL NURSING,HNSI0000680,989.51
Department of Health,Leicestershire Partnership NHS Trust,10/05/21,NURSE - BAND 2 - AGENCY,Beaumont Ward - Bradgate Unit,HCL NURSING,HNSI0000680,2041.00
Department of Health,Leicestershire Partnership NHS Trust,10/05/21,NURSE - BAND 5 - AGENCY,Beaumont Ward - Bradgate Unit,HCL NURSING,HNSI0000680,1086.38
Department of Health,Leicestershire Partnership NHS Trust,10/05/21,NURSE - BAND 2 - AGENCY,Belvoir Psychiatric Intensive Care Unit,HCL NURSING,HNSI0000680,2543.94
Department of Health,Leicestershire Partnership NHS Trust,10/05/21,NURSE - BAND 5 - AGENCY,Belvoir Psychiatric Intensive Care Unit,HCL NURSING,HNSI0000680,1052.58
Department of Health,Leicestershire Partnership NHS Trust,10/05/21,Nurse - Band 6 -Agency,Crisis Resolution,HCL NURSING,HNSI0000680,2008.05
Department of Health,Leicestershire Partnership NHS Trust,10/05/21,NURSE - BAND 2 - AGENCY,Griffin Ward (HPC),HCL NURSING,HNSI0000680,961.04
Department of Health,Leicestershire Partnership NHS Trust,10/05/21,NURSE - BAND 5 - AGENCY,Griffin Ward (HPC),HCL NURSING,HNSI0000680,669.81
Department of Health,Leicestershire Partnership NHS Trust,10/05/21,NURSE - BAND 2 - AGENCY,Heather Ward,HCL NURSING,HNSI0000680,426.52
Department of Health,Leicestershire Partnership NHS Trust,10/05/21,NURSE - BAND 5 - AGENCY,Heather Ward,HCL NURSING,HNSI0000680,1086.38
Department of Health,Leicestershire Partnership NHS Trust,10/05/21,Nurse - Band 6 -Agency,Mental Health Triage Team,HCL NURSING,HNSI0000680,1154.06
Department of Health,Leicestershire Partnership NHS Trust,10/05/21,NURSE - BAND 2 - AGENCY,Mill Lodge,HCL NURSING,HNSI0000680,472.47
Department of Health,Leicestershire Partnership NHS Trust,10/05/21,NURSE - BAND 5 - AGENCY,Mill Lodge,HCL NURSING,HNSI0000680,1570.33
Department of Health,Leicestershire Partnership NHS Trust,10/05/21,NURSE - BAND 5 - AGENCY,Phoenix Ward (HPC),HCL NURSING,HNSI0000680,266.77
Department of Health,Leicestershire Partnership NHS Trust,10/05/21,NURSE - BAND 2 - AGENCY,Place Of Safety Assessment Unit,HCL NURSING,HNSI0000680,426.52
Department of Health,Leicestershire Partnership NHS Trust,10/05/21,NURSE - BAND 5 - AGENCY,Place Of Safety Assessment Unit,HCL NURSING,HNSI0000680,399.67
Department of Health,Leicestershire Partnership NHS Trust,10/05/21,NURSE - BAND 2 - AGENCY,Stewart House,HCL NURSING,HNSI0000680,300.95
Department of Health,Leicestershire Partnership NHS Trust,10/05/21,NURSE - BAND 2 - AGENCY,Thornton Ward - Bradgate Unit,HCL NURSING,HNSI0000680,277.89
Department of Health,Leicestershire Partnership NHS Trust,10/05/21,NURSE - BAND 2 - AGENCY,Watermead Ward (Bradgate Unit),HCL NURSING,HNSI0000680,2202.58
Department of Health,Leicestershire Partnership NHS Trust,10/05/21,NURSE - BAND 5 - AGENCY,Watermead Ward (Bradgate Unit),HCL NURSING,HNSI0000680,426.71
Department of Health,Leicestershire Partnership NHS Trust,10/05/21,Nurse - Band 6 -Agency,AMH - Central Access Point,HCL NURSING,HNSI0000674,1183.19
Department of Health,Leicestershire Partnership NHS Trust,10/05/21,Nurse - Band 6 -Agency,Adult City East CMHT - Merlyn Vaz,HCL NURSING,HNSI0000674,2111.47
Department of Health,Leicestershire Partnership NHS Trust,10/05/21,Nurse - Band 6 -Agency,Adult County Charnwood CMHT - Loughborough Base,HCL NURSING,HNSI0000674,1069.97
Department of Health,Leicestershire Partnership NHS Trust,10/05/21,Nurse - Band 6 -Agency,Adult County West Leicestershire CMHT,HCL NURSING,HNSI0000674,1348.16
Department of Health,Leicestershire Partnership NHS Trust,10/05/21,NURSE - BAND 2 - AGENCY,Agnes Unit Management,HCL NURSING,HNSI0000674,12833.79
Department of Health,Leicestershire Partnership NHS Trust,10/05/21,NURSE - BAND 5 - AGENCY,Agnes Unit Management,HCL NURSING,HNSI0000674,7435.14
Department of Health,Leicestershire Partnership NHS Trust,10/05/21,NURSE - BAND 2 - AGENCY,Aston Ward (Bradgate Unit),HCL NURSING,HNSI0000674,562.72
Department of Health,Leicestershire Partnership NHS Trust,10/05/21,NURSE - BAND 2 - AGENCY,Beaumont Ward - Bradgate Unit,HCL NURSING,HNSI0000674,3469.75
Department of Health,Leicestershire Partnership NHS Trust,10/05/21,NURSE - BAND 5 - AGENCY,Beaumont Ward - Bradgate Unit,HCL NURSING,HNSI0000674,679.95
Department of Health,Leicestershire Partnership NHS Trust,10/05/21,NURSE - BAND 2 - AGENCY,Belvoir Psychiatric Intensive Care Unit,HCL NURSING,HNSI0000674,747.77
Department of Health,Leicestershire Partnership NHS Trust,10/05/21,NURSE - BAND 5 - AGENCY,Belvoir Psychiatric Intensive Care Unit,HCL NURSING,HNSI0000674,1752.82
Department of Health,Leicestershire Partnership NHS Trust,10/05/21,Nurse - Band 6 -Agency,Crisis Resolution,HCL NURSING,HNSI0000674,5703.55
Department of Health,Leicestershire Partnership NHS Trust,10/05/21,NURSE - BAND 2 - AGENCY,Griffin Ward (HPC),HCL NURSING,HNSI0000674,1506.98
Department of Health,Leicestershire Partnership NHS Trust,10/05/21,NURSE - BAND 5 - AGENCY,Griffin Ward (HPC),HCL NURSING,HNSI0000674,1103.28
Department of Health,Leicestershire Partnership NHS Trust,10/05/21,NURSE - BAND 2 - AGENCY,Heather Ward,HCL NURSING,HNSI0000674,869.51
Department of Health,Leicestershire Partnership NHS Trust,10/05/21,NURSE - BAND 5 - AGENCY,Heather Ward,HCL NURSING,HNSI0000674,669.81
Department of Health,Leicestershire Partnership NHS Trust,10/05/21,NURSE - BAND 2 - AGENCY,Maple Ward,HCL NURSING,HNSI0000674,240.34
Department of Health,Leicestershire Partnership NHS Trust,10/05/21,Nurse - Band 6 -Agency,Mental Health Triage Team,HCL NURSING,HNSI0000674,1872.95
Department of Health,Leicestershire Partnership NHS Trust,10/05/21,NURSE - BAND 2 - AGENCY,Mill Lodge,HCL NURSING,HNSI0000674,2577.09
Department of Health,Leicestershire Partnership NHS Trust,10/05/21,NURSE - BAND 5 - AGENCY,Mill Lodge,HCL NURSING,HNSI0000674,1457.25
Department of Health,Leicestershire Partnership NHS Trust,10/05/21,NURSE - BAND 2 - AGENCY,Phoenix Ward (HPC),HCL NURSING,HNSI0000674,934.69
Department of Health,Leicestershire Partnership NHS Trust,10/05/21,NURSE - BAND 5 - AGENCY,Phoenix Ward (HPC),HCL NURSING,HNSI0000674,563.35
Department of Health,Leicestershire Partnership NHS Trust,10/05/21,NURSE - BAND 5 - AGENCY,Place Of Safety Assessment Unit,HCL NURSING,HNSI0000674,686.71
Department of Health,Leicestershire Partnership NHS Trust,10/05/21,NURSE - BAND 5 - AGENCY,Stewart House,HCL NURSING,HNSI0000674,844.26
Department of Health,Leicestershire Partnership NHS Trust,10/05/21,NURSE - BAND 2 - AGENCY,Thornton Ward - Bradgate Unit,HCL NURSING,HNSI0000674,414.93
Department of Health,Leicestershire Partnership NHS Trust,10/05/21,NURSE - BAND 2 - AGENCY,Watermead Ward (Bradgate Unit),HCL NURSING,HNSI0000674,452.62
Department of Health,Leicestershire Partnership NHS Trust,10/05/21,NURSE - BAND 5 - AGENCY,Watermead Ward (Bradgate Unit),HCL NURSING,HNSI0000674,329.84
Department of Health,Leicestershire Partnership NHS Trust,10/05/21,Crs_NHS_LT1y -Resus Inventory Supplied.,Balance Sheet Collection,SUPPLY CHAIN CO LTD,1122019838,28004.00
Department of Health,Leicestershire Partnership NHS Trust,14/05/21,Insurance Costs,Chief Executives Office,NHS LITIGATION AUTHORITY,SICX405024,165217.80
Department of Health,Leicestershire Partnership NHS Trust,14/05/21,Photocopying,Estates & Facilities Central,LEXMARK INTERNATIONAL LTD,900650300870,34514.48
Department of Health,Leicestershire Partnership NHS Trust,14/05/21,WIP Project Not in BS - Buildings excl Dwellings,Work in Progress,TILBURY DOUGLAS CONSTRUCTION LTD,TMP01904,46635.53
Department of Health,Leicestershire Partnership NHS Trust,17/05/21,Course / Training Expenses,Learning & Develpoment,TSI INSTRUMENTS LTD,91330999,63064.80
Department of Health,Leicestershire Partnership NHS Trust,17/05/21,Postage & Carriage,Learning & Develpoment,TSI INSTRUMENTS LTD,91330999,64.84
Department of Health,Leicestershire Partnership NHS Trust,17/05/21,NURSE - BAND 2 - AGENCY,Beechwood Ward,HCL NURSING,HNSI0000681,2202.07
Department of Health,Leicestershire Partnership NHS Trust,17/05/21,NURSE - BAND 5 - AGENCY,Beechwood Ward,HCL NURSING,HNSI0000681,1473.08
Department of Health,Leicestershire Partnership NHS Trust,17/05/21,NURSE - BAND 5 - AGENCY,City Planned Care - East,HCL NURSING,HNSI0000681,13767.72
Department of Health,Leicestershire Partnership NHS Trust,17/05/21,NURSE - BAND 5 - AGENCY,City Planned Care - West,HCL NURSING,HNSI0000681,13501.05
Department of Health,Leicestershire Partnership NHS Trust,17/05/21,Nurse - Band 6 -Agency,City West CMHT MHSOP,HCL NURSING,HNSI0000681,2116.22
Department of Health,Leicestershire Partnership NHS Trust,17/05/21,NURSE - BAND 2 - AGENCY,Clarendon Ward,HCL NURSING,HNSI0000681,710.61
Department of Health,Leicestershire Partnership NHS Trust,17/05/21,NURSE - BAND 5 - AGENCY,Clarendon Ward,HCL NURSING,HNSI0000681,2091.91
Department of Health,Leicestershire Partnership NHS Trust,17/05/21,NURSE - BAND 2 - AGENCY,Coalville Snibston Ward,HCL NURSING,HNSI0000681,1590.21
Department of Health,Leicestershire Partnership NHS Trust,17/05/21,NURSE - BAND 5 - AGENCY,Coalville Snibston Ward,HCL NURSING,HNSI0000681,911.40
Department of Health,Leicestershire Partnership NHS Trust,17/05/21,NURSE - BAND 2 - AGENCY,Coalville Ward 2,HCL NURSING,HNSI0000681,1886.36
Department of Health,Leicestershire Partnership NHS Trust,17/05/21,NURSE - BAND 5 - AGENCY,Coalville Ward 2,HCL NURSING,HNSI0000681,1251.30
Department of Health,Leicestershire Partnership NHS Trust,17/05/21,NURSE - BAND 2 - AGENCY,Coleman Ward,HCL NURSING,HNSI0000681,6355.37
Department of Health,Leicestershire Partnership NHS Trust,17/05/21,NURSE - BAND 5 - AGENCY,Coleman Ward,HCL NURSING,HNSI0000681,5150.91
Department of Health,Leicestershire Partnership NHS Trust,17/05/21,NURSE - BAND 2 - AGENCY,Dalgliesh Ward,HCL NURSING,HNSI0000681,885.76
Department of Health,Leicestershire Partnership NHS Trust,17/05/21,NURSE - BAND 5 - AGENCY,Dalgliesh Ward,HCL NURSING,HNSI0000681,750.59
Department of Health,Leicestershire Partnership NHS Trust,17/05/21,NURSE - BAND 2 - AGENCY,Gwendolen Ward,HCL NURSING,HNSI0000681,1269.67
Department of Health,Leicestershire Partnership NHS Trust,17/05/21,NURSE - BAND 5 - AGENCY,Gwendolen Ward,HCL NURSING,HNSI0000681,3602.20
Department of Health,Leicestershire Partnership NHS Trust,17/05/21,NURSE - BAND 2 - AGENCY,H&B Comm Hosp East Ward,HCL NURSING,HNSI0000681,1981.02
Department of Health,Leicestershire Partnership NHS Trust,17/05/21,NURSE - BAND 5 - AGENCY,H&B Comm Hosp East Ward,HCL NURSING,HNSI0000681,2753.29
Department of Health,Leicestershire Partnership NHS Trust,17/05/21,NURSE - BAND 2 - AGENCY,H&B Comm Hosp North Ward,HCL NURSING,HNSI0000681,1573.42
Department of Health,Leicestershire Partnership NHS Trust,17/05/21,NURSE - BAND 5 - AGENCY,H&B Comm Hosp North Ward,HCL NURSING,HNSI0000681,1231.76
Department of Health,Leicestershire Partnership NHS Trust,17/05/21,NURSE - BAND 2 - AGENCY,Kirby Ward,HCL NURSING,HNSI0000681,496.50
Department of Health,Leicestershire Partnership NHS Trust,17/05/21,NURSE - BAND 5 - AGENCY,Kirby Ward,HCL NURSING,HNSI0000681,629.99
Department of Health,Leicestershire Partnership NHS Trust,17/05/21,NURSE - BAND 5 - AGENCY,Lough Swithland Ward,HCL NURSING,HNSI0000681,329.84
Department of Health,Leicestershire Partnership NHS Trust,17/05/21,NURSE - BAND 5 - AGENCY,Non Recurrent 2012/13,HCL NURSING,HNSI0000681,329.39
Department of Health,Leicestershire Partnership NHS Trust,17/05/21,NURSE - BAND 5 - AGENCY,Rutland Ward Nursing,HCL NURSING,HNSI0000681,1043.56
Department of Health,Leicestershire Partnership NHS Trust,17/05/21,NURSE - BAND 2 - AGENCY,St Lukes Stroke Ward,HCL NURSING,HNSI0000681,236.01
Department of Health,Leicestershire Partnership NHS Trust,17/05/21,NURSE - BAND 5 - AGENCY,St Lukes Stroke Ward,HCL NURSING,HNSI0000681,1657.12
Department of Health,Leicestershire Partnership NHS Trust,17/05/21,NURSE - BAND 2 - AGENCY,St Lukes Ward 3,HCL NURSING,HNSI0000681,965.54
Department of Health,Leicestershire Partnership NHS Trust,17/05/21,NURSE - BAND 5 - AGENCY,St Lukes Ward 3,HCL NURSING,HNSI0000681,2282.66
Department of Health,Leicestershire Partnership NHS Trust,17/05/21,NURSE - BAND 2 - AGENCY,Wakerley Ward,HCL NURSING,HNSI0000681,1791.17
Department of Health,Leicestershire Partnership NHS Trust,17/05/21,NURSE - BAND 5 - AGENCY,Wakerley Ward,HCL NURSING,HNSI0000681,3610.16
Department of Health,Leicestershire Partnership NHS Trust,17/05/21,NURSE - BAND 2 - AGENCY,Welford Ward,HCL NURSING,HNSI0000681,195.47
Department of Health,Leicestershire Partnership NHS Trust,17/05/21,NURSE - BAND 5 - AGENCY,Welford Ward,HCL NURSING,HNSI0000681,302.60
Department of Health,Leicestershire Partnership NHS Trust,17/05/21,WIP Project Not in BS - Buildings excl Dwellings,Work in Progress,TILBURY DOUGLAS CONSTRUCTION LTD,TMP01911,61261.34
Department of Health,Leicestershire Partnership NHS Trust,17/05/21,Crs_NHS_LT1y -Resus Inventory Supplied.,Balance Sheet Collection,SUPPLY CHAIN CO LTD,1122025498,29263.94
Department of Health,Leicestershire Partnership NHS Trust,17/05/21,Drugs,Adult City Drugs,JANSSEN-CILAG LTD,930746548,10625.91
Department of Health,Leicestershire Partnership NHS Trust,17/05/21,Drugs,Adult County Drugs,JANSSEN-CILAG LTD,930746548,15938.87
Department of Health,Leicestershire Partnership NHS Trust,18/05/21,Landline Telephone Rental / Calls,"Beaumont Leys Health Centre (P94, LPT)",VIRGIN MEDIA BUSINESS,853083001/004/0521,380.14
Department of Health,Leicestershire Partnership NHS Trust,18/05/21,Landline Telephone Rental / Calls,Belgrave Health Centre (CHP),VIRGIN MEDIA BUSINESS,853083001/004/0521,305.03
Department of Health,Leicestershire Partnership NHS Trust,18/05/21,Landline Telephone Rental / Calls,"Bennion Centre (including Forest Grange Day Unit) (P8, LPT)",VIRGIN MEDIA BUSINESS,853083001/004/0521,7.74
Department of Health,Leicestershire Partnership NHS Trust,18/05/21,Landline Telephone Rental / Calls,"Bradgate Unit (including Glenvale day Unit) (P7, LPT)",VIRGIN MEDIA BUSINESS,853083001/004/0521,9630.79
Department of Health,Leicestershire Partnership NHS Trust,18/05/21,Landline Telephone Rental / Calls,Braunstone Health and Social Care Centre (Part) (PROPCO),VIRGIN MEDIA BUSINESS,853083001/004/0521,1127.92
Department of Health,Leicestershire Partnership NHS Trust,18/05/21,Landline Telephone Rental / Calls,Bridge Park Plaza - First Floor (LPT),VIRGIN MEDIA BUSINESS,853083001/004/0521,4665.83
Department of Health,Leicestershire Partnership NHS Trust,18/05/21,Landline Telephone Rental / Calls,"Coalville Community Hospital (P138, LPT)",VIRGIN MEDIA BUSINESS,853083001/004/0521,1732.87
Department of Health,Leicestershire Partnership NHS Trust,18/05/21,Landline Telephone Rental / Calls,"Coalville Health Centre (P121, LPT)",VIRGIN MEDIA BUSINESS,853083001/004/0521,154.62
Department of Health,Leicestershire Partnership NHS Trust,18/05/21,Landline Telephone Rental / Calls,County Hall,VIRGIN MEDIA BUSINESS,853083001/004/0521,6817.99
Department of Health,Leicestershire Partnership NHS Trust,18/05/21,Landline Telephone Rental / Calls,Estates & Facilities Central,VIRGIN MEDIA BUSINESS,853083001/004/0521,687.98
Department of Health,Leicestershire Partnership NHS Trust,18/05/21,Landline Telephone Rental / Calls,"Evington Centre (P6, LPT)",VIRGIN MEDIA BUSINESS,853083001/004/0521,1798.99
Department of Health,Leicestershire Partnership NHS Trust,18/05/21,Landline Telephone Rental / Calls,HIS,VIRGIN MEDIA BUSINESS,853083001/004/0521,3135.92
Department of Health,Leicestershire Partnership NHS Trust,18/05/21,Landline Telephone Rental / Calls,"Hawthorne Centre - Coalville (P14, LPT)",VIRGIN MEDIA BUSINESS,853083001/004/0521,523.51
Department of Health,Leicestershire Partnership NHS Trust,18/05/21,Landline Telephone Rental / Calls,Hinckley & District Hospital (PROPCO),VIRGIN MEDIA BUSINESS,853083001/004/0521,1115.35
Department of Health,Leicestershire Partnership NHS Trust,18/05/21,Landline Telephone Rental / Calls,"Hinckley and Bosworth Community Hospital (Sunnyside) (P133, LPT)",VIRGIN MEDIA BUSINESS,853083001/004/0521,1045.46
Department of Health,Leicestershire Partnership NHS Trust,18/05/21,Landline Telephone Rental / Calls,Hood Park Leisure Centre Clinic,VIRGIN MEDIA BUSINESS,853083001/004/0521,23.22
Department of Health,Leicestershire Partnership NHS Trust,18/05/21,Landline Telephone Rental / Calls,"Hynca Lodge (P33, LPT)",VIRGIN MEDIA BUSINESS,853083001/004/0521,385.50
Department of Health,Leicestershire Partnership NHS Trust,18/05/21,Landline Telephone Rental / Calls,"Legion House, Ashby",VIRGIN MEDIA BUSINESS,853083001/004/0521,43.51
Department of Health,Leicestershire Partnership NHS Trust,18/05/21,Landline Telephone Rental / Calls,Loughborough Health Centre (PROPCO),VIRGIN MEDIA BUSINESS,853083001/004/0521,7.98
Department of Health,Leicestershire Partnership NHS Trust,18/05/21,Landline Telephone Rental / Calls,"Loughborough Hospital (P136, LPT)",VIRGIN MEDIA BUSINESS,853083001/004/0521,4992.49
Department of Health,Leicestershire Partnership NHS Trust,18/05/21,Landline Telephone Rental / Calls,Mawson House (LPT),VIRGIN MEDIA BUSINESS,853083001/004/0521,521.05
Department of Health,Leicestershire Partnership NHS Trust,18/05/21,Landline Telephone Rental / Calls,Melbourne Centre (Pt Grnd flr) (PROPCO),VIRGIN MEDIA BUSINESS,853083001/004/0521,6.45
Department of Health,Leicestershire Partnership NHS Trust,18/05/21,Landline Telephone Rental / Calls,Melton Mowbray Hospital (previously St. Mary's) (PROPCO),VIRGIN MEDIA BUSINESS,853083001/004/0521,1675.48
Department of Health,Leicestershire Partnership NHS Trust,18/05/21,Landline Telephone Rental / Calls,Merlyn Vaz Centre (CHP),VIRGIN MEDIA BUSINESS,853083001/004/0521,1457.88
Department of Health,Leicestershire Partnership NHS Trust,18/05/21,Landline Telephone Rental / Calls,"Mett Centre (P49, LPT)",VIRGIN MEDIA BUSINESS,853083001/004/0521,78.00
Department of Health,Leicestershire Partnership NHS Trust,18/05/21,Landline Telephone Rental / Calls,NSPCC Training Cente,VIRGIN MEDIA BUSINESS,853083001/004/0521,159.96
Department of Health,Leicestershire Partnership NHS Trust,18/05/21,Landline Telephone Rental / Calls,New Parks Health Centre (PROPCO),VIRGIN MEDIA BUSINESS,853083001/004/0521,1609.30
Department of Health,Leicestershire Partnership NHS Trust,18/05/21,Landline Telephone Rental / Calls,"OSL House (P54, LPT)",VIRGIN MEDIA BUSINESS,853083001/004/0521,1685.43
Department of Health,Leicestershire Partnership NHS Trust,18/05/21,Landline Telephone Rental / Calls,"Orchard Resource Centre (P15, LPT)",VIRGIN MEDIA BUSINESS,853083001/004/0521,844.45
Department of Health,Leicestershire Partnership NHS Trust,18/05/21,Landline Telephone Rental / Calls,Pasley Road Health Centre (PROPCO),VIRGIN MEDIA BUSINESS,853083001/004/0521,99.17
Department of Health,Leicestershire Partnership NHS Trust,18/05/21,Landline Telephone Rental / Calls,"Prince Philip House (P96, LPT)",VIRGIN MEDIA BUSINESS,853083001/004/0521,1853.84
Department of Health,Leicestershire Partnership NHS Trust,18/05/21,Landline Telephone Rental / Calls,Rushey Mead Health Centre (PROPCO),VIRGIN MEDIA BUSINESS,853083001/004/0521,84.77
Department of Health,Leicestershire Partnership NHS Trust,18/05/21,Landline Telephone Rental / Calls,"Shepshed Health Centre (P123, LPT)",VIRGIN MEDIA BUSINESS,853083001/004/0521,13.55
Department of Health,Leicestershire Partnership NHS Trust,18/05/21,Landline Telephone Rental / Calls,"Springfield Road Health Centre (P92, LPT)",VIRGIN MEDIA BUSINESS,853083001/004/0521,392.34
Department of Health,Leicestershire Partnership NHS Trust,18/05/21,Landline Telephone Rental / Calls,"St Peters Health Center (Part 1st and 2nd floors) (P66, LPT)",VIRGIN MEDIA BUSINESS,853083001/004/0521,2225.41
Department of Health,Leicestershire Partnership NHS Trust,18/05/21,Landline Telephone Rental / Calls,"Stewart House (P61, LPT)",VIRGIN MEDIA BUSINESS,853083001/004/0521,7.74
Department of Health,Leicestershire Partnership NHS Trust,18/05/21,Landline Telephone Rental / Calls,"Swithland House - London Road 352 (P44, LPT)",VIRGIN MEDIA BUSINESS,853083001/004/0521,493.63
Department of Health,Leicestershire Partnership NHS Trust,18/05/21,Landline Telephone Rental / Calls,"The Cedars (P19, LPT)",VIRGIN MEDIA BUSINESS,853083001/004/0521,833.96
Department of Health,Leicestershire Partnership NHS Trust,18/05/21,Landline Telephone Rental / Calls,"The Willows - Cordelia Close (P22, LPT)",VIRGIN MEDIA BUSINESS,853083001/004/0521,457.00
Department of Health,Leicestershire Partnership NHS Trust,18/05/21,Landline Telephone Rental / Calls,Uppingham Road Health Centre (PROPCO),VIRGIN MEDIA BUSINESS,853083001/004/0521,242.18
Department of Health,Leicestershire Partnership NHS Trust,18/05/21,Landline Telephone Rental / Calls,"Valentine Centre (P3, LPT)",VIRGIN MEDIA BUSINESS,853083001/004/0521,2184.08
Department of Health,Leicestershire Partnership NHS Trust,18/05/21,Landline Telephone Rental / Calls,Warren Park Way 25 (PROPCO),VIRGIN MEDIA BUSINESS,853083001/004/0521,738.22
Department of Health,Leicestershire Partnership NHS Trust,18/05/21,Landline Telephone Rental / Calls,"Westcotes Group -Westcotes House (P78, LPT)",VIRGIN MEDIA BUSINESS,853083001/004/0521,1748.64
Department of Health,Leicestershire Partnership NHS Trust,18/05/21,Landline Telephone Rental / Calls,Westcotes Health Centre (CHP),VIRGIN MEDIA BUSINESS,853083001/004/0521,817.13
Department of Health,Leicestershire Partnership NHS Trust,18/05/21,Landline Telephone Rental / Calls,"Winstanley Drive Health Centre (P8, LPT)",VIRGIN MEDIA BUSINESS,853083001/004/0521,422.59
Department of Health,Leicestershire Partnership NHS Trust,18/05/21,Nurse - Band 6 -Agency,AMH - Central Access Point,HCL NURSING,HNSI0000687,1195.50
Department of Health,Leicestershire Partnership NHS Trust,18/05/21,Nurse - Band 6 -Agency,Adult City East CMHT - Merlyn Vaz,HCL NURSING,HNSI0000687,1420.27
Department of Health,Leicestershire Partnership NHS Trust,18/05/21,Nurse - Band 6 -Agency,Adult County Charnwood CMHT - Loughborough Base,HCL NURSING,HNSI0000687,1069.97
Department of Health,Leicestershire Partnership NHS Trust,18/05/21,Nurse - Band 6 -Agency,Adult County West Leicestershire CMHT,HCL NURSING,HNSI0000687,1198.36
Department of Health,Leicestershire Partnership NHS Trust,18/05/21,NURSE - BAND 2 - AGENCY,Agnes Unit Management,HCL NURSING,HNSI0000687,15219.02
Department of Health,Leicestershire Partnership NHS Trust,18/05/21,NURSE - BAND 5 - AGENCY,Agnes Unit Management,HCL NURSING,HNSI0000687,11194.27
Department of Health,Leicestershire Partnership NHS Trust,18/05/21,NURSE - BAND 2 - AGENCY,Ashby Ward (Bradgate Unit),HCL NURSING,HNSI0000687,730.50
Department of Health,Leicestershire Partnership NHS Trust,18/05/21,NURSE - BAND 5 - AGENCY,Ashby Ward (Bradgate Unit),HCL NURSING,HNSI0000687,329.84
Department of Health,Leicestershire Partnership NHS Trust,18/05/21,NURSE - BAND 2 - AGENCY,Aston Ward (Bradgate Unit),HCL NURSING,HNSI0000687,1232.88
Department of Health,Leicestershire Partnership NHS Trust,18/05/21,NURSE - BAND 5 - AGENCY,Aston Ward (Bradgate Unit),HCL NURSING,HNSI0000687,1126.94
Department of Health,Leicestershire Partnership NHS Trust,18/05/21,NURSE - BAND 2 - AGENCY,Beaumont Ward - Bradgate Unit,HCL NURSING,HNSI0000687,5047.05
Department of Health,Leicestershire Partnership NHS Trust,18/05/21,NURSE - BAND 5 - AGENCY,Beaumont Ward - Bradgate Unit,HCL NURSING,HNSI0000687,714.21
Department of Health,Leicestershire Partnership NHS Trust,18/05/21,NURSE - BAND 2 - AGENCY,Belvoir Psychiatric Intensive Care Unit,HCL NURSING,HNSI0000687,1907.17
Department of Health,Leicestershire Partnership NHS Trust,18/05/21,NURSE - BAND 5 - AGENCY,Belvoir Psychiatric Intensive Care Unit,HCL NURSING,HNSI0000687,998.32
Department of Health,Leicestershire Partnership NHS Trust,18/05/21,Nurse - Band 6 -Agency,Crisis Resolution,HCL NURSING,HNSI0000687,2507.74
Department of Health,Leicestershire Partnership NHS Trust,18/05/21,NURSE - BAND 2 - AGENCY,Griffin Ward (HPC),HCL NURSING,HNSI0000687,873.65
Department of Health,Leicestershire Partnership NHS Trust,18/05/21,NURSE - BAND 2 - AGENCY,Heather Ward,HCL NURSING,HNSI0000687,556.85
Department of Health,Leicestershire Partnership NHS Trust,18/05/21,Nurse - Band 6 -Agency,Mental Health Triage Team,HCL NURSING,HNSI0000687,1522.92
Department of Health,Leicestershire Partnership NHS Trust,18/05/21,NURSE - BAND 2 - AGENCY,Mill Lodge,HCL NURSING,HNSI0000687,2024.39
Department of Health,Leicestershire Partnership NHS Trust,18/05/21,NURSE - BAND 5 - AGENCY,Mill Lodge,HCL NURSING,HNSI0000687,3108.68
Department of Health,Leicestershire Partnership NHS Trust,18/05/21,NURSE - BAND 2 - AGENCY,Outreach,HCL NURSING,HNSI0000687,1550.38
Department of Health,Leicestershire Partnership NHS Trust,18/05/21,NURSE - BAND 2 - AGENCY,Phoenix Ward (HPC),HCL NURSING,HNSI0000687,1007.44
Department of Health,Leicestershire Partnership NHS Trust,18/05/21,NURSE - BAND 5 - AGENCY,Phoenix Ward (HPC),HCL NURSING,HNSI0000687,329.84
Department of Health,Leicestershire Partnership NHS Trust,18/05/21,NURSE - BAND 5 - AGENCY,Place Of Safety Assessment Unit,HCL NURSING,HNSI0000687,686.71
Department of Health,Leicestershire Partnership NHS Trust,18/05/21,NURSE - BAND 5 - AGENCY,Stewart House,HCL NURSING,HNSI0000687,838.96
Department of Health,Leicestershire Partnership NHS Trust,18/05/21,NURSE - BAND 5 - AGENCY,Thornton Ward - Bradgate Unit,HCL NURSING,HNSI0000687,855.69
Department of Health,Leicestershire Partnership NHS Trust,18/05/21,NURSE - BAND 2 - AGENCY,Watermead Ward (Bradgate Unit),HCL NURSING,HNSI0000687,930.30
Department of Health,Leicestershire Partnership NHS Trust,18/05/21,NURSE - BAND 5 - AGENCY,Watermead Ward (Bradgate Unit),HCL NURSING,HNSI0000687,1450.81
Department of Health,Leicestershire Partnership NHS Trust,18/05/21,Mobile Telephone Rental / Calls,Specific Unit Budget Reserves,VODAFONE CORPORATE LTD,000098013486,138176.11
Department of Health,Leicestershire Partnership NHS Trust,18/05/21,UHL Facilities Management SLA,Estates Central Invoices To Recharge,UHL NHS TRUST (RWE),L0250595,940375.84
Department of Health,Leicestershire Partnership NHS Trust,18/05/21,UHL Facilities Management SLA,Estates Central Invoices To Recharge,UHL NHS TRUST (RWE),L0250590,940375.84
Department of Health,Leicestershire Partnership NHS Trust,19/05/21,Med GP Trainees,Medical Trainees,ST.HELENS & KNOWSLEY NHS TRUST,16805329,75000.00
Department of Health,Leicestershire Partnership NHS Trust,19/05/21,NURSE - BAND 2 - AGENCY,Beechwood Ward,HCL NURSING,HNSI0000688,1953.54
Department of Health,Leicestershire Partnership NHS Trust,19/05/21,NURSE - BAND 5 - AGENCY,Beechwood Ward,HCL NURSING,HNSI0000688,4001.76
Department of Health,Leicestershire Partnership NHS Trust,19/05/21,NURSE - BAND 5 - AGENCY,City Planned Care - East,HCL NURSING,HNSI0000688,14119.33
Department of Health,Leicestershire Partnership NHS Trust,19/05/21,NURSE - BAND 5 - AGENCY,City Planned Care - West,HCL NURSING,HNSI0000688,11471.35
Department of Health,Leicestershire Partnership NHS Trust,19/05/21,Nurse - Band 6 -Agency,City West CMHT MHSOP,HCL NURSING,HNSI0000688,1902.22
Department of Health,Leicestershire Partnership NHS Trust,19/05/21,NURSE - BAND 2 - AGENCY,Clarendon Ward,HCL NURSING,HNSI0000688,2826.60
Department of Health,Leicestershire Partnership NHS Trust,19/05/21,NURSE - BAND 5 - AGENCY,Clarendon Ward,HCL NURSING,HNSI0000688,6282.22
Department of Health,Leicestershire Partnership NHS Trust,19/05/21,NURSE - BAND 2 - AGENCY,Coalville Snibston Ward,HCL NURSING,HNSI0000688,720.75
Department of Health,Leicestershire Partnership NHS Trust,19/05/21,NURSE - BAND 5 - AGENCY,Coalville Snibston Ward,HCL NURSING,HNSI0000688,560.87
Department of Health,Leicestershire Partnership NHS Trust,19/05/21,NURSE - BAND 2 - AGENCY,Coalville Ward 2,HCL NURSING,HNSI0000688,1846.08
Department of Health,Leicestershire Partnership NHS Trust,19/05/21,NURSE - BAND 5 - AGENCY,Coalville Ward 2,HCL NURSING,HNSI0000688,1272.26
Department of Health,Leicestershire Partnership NHS Trust,19/05/21,NURSE - BAND 2 - AGENCY,Coleman Ward,HCL NURSING,HNSI0000688,6824.33
Department of Health,Leicestershire Partnership NHS Trust,19/05/21,NURSE - BAND 5 - AGENCY,Coleman Ward,HCL NURSING,HNSI0000688,5971.23
Department of Health,Leicestershire Partnership NHS Trust,19/05/21,NURSE - BAND 2 - AGENCY,Dalgliesh Ward,HCL NURSING,HNSI0000688,453.60
Department of Health,Leicestershire Partnership NHS Trust,19/05/21,NURSE - BAND 5 - AGENCY,Dalgliesh Ward,HCL NURSING,HNSI0000688,2073.40
Department of Health,Leicestershire Partnership NHS Trust,19/05/21,NURSE - BAND 2 - AGENCY,Gwendolen Ward,HCL NURSING,HNSI0000688,3737.54
Department of Health,Leicestershire Partnership NHS Trust,19/05/21,NURSE - BAND 5 - AGENCY,Gwendolen Ward,HCL NURSING,HNSI0000688,5281.71
Department of Health,Leicestershire Partnership NHS Trust,19/05/21,NURSE - BAND 2 - AGENCY,H&B Comm Hosp East Ward,HCL NURSING,HNSI0000688,984.22
Department of Health,Leicestershire Partnership NHS Trust,19/05/21,NURSE - BAND 5 - AGENCY,H&B Comm Hosp East Ward,HCL NURSING,HNSI0000688,4190.16
Department of Health,Leicestershire Partnership NHS Trust,19/05/21,NURSE - BAND 2 - AGENCY,H&B Comm Hosp North Ward,HCL NURSING,HNSI0000688,2984.89
Department of Health,Leicestershire Partnership NHS Trust,19/05/21,NURSE - BAND 5 - AGENCY,H&B Comm Hosp North Ward,HCL NURSING,HNSI0000688,6225.33
Department of Health,Leicestershire Partnership NHS Trust,19/05/21,NURSE - BAND 2 - AGENCY,Kirby Ward,HCL NURSING,HNSI0000688,959.42
Department of Health,Leicestershire Partnership NHS Trust,19/05/21,NURSE - BAND 5 - AGENCY,Kirby Ward,HCL NURSING,HNSI0000688,302.60
Department of Health,Leicestershire Partnership NHS Trust,19/05/21,NURSE - BAND 5 - AGENCY,Lough Swithland Ward,HCL NURSING,HNSI0000688,600.65
Department of Health,Leicestershire Partnership NHS Trust,19/05/21,NURSE - BAND 5 - AGENCY,Non Recurrent 2012/13,HCL NURSING,HNSI0000688,4284.38
Department of Health,Leicestershire Partnership NHS Trust,19/05/21,NURSE - BAND 5 - AGENCY,Rutland Ward Nursing,HCL NURSING,HNSI0000688,600.65
Department of Health,Leicestershire Partnership NHS Trust,19/05/21,NURSE - BAND 2 - AGENCY,St Lukes Stroke Ward,HCL NURSING,HNSI0000688,144.96
Department of Health,Leicestershire Partnership NHS Trust,19/05/21,NURSE - BAND 5 - AGENCY,St Lukes Stroke Ward,HCL NURSING,HNSI0000688,3148.88
Department of Health,Leicestershire Partnership NHS Trust,19/05/21,NURSE - BAND 2 - AGENCY,St Lukes Ward 3,HCL NURSING,HNSI0000688,1168.34
Department of Health,Leicestershire Partnership NHS Trust,19/05/21,NURSE - BAND 5 - AGENCY,St Lukes Ward 3,HCL NURSING,HNSI0000688,392.91
Department of Health,Leicestershire Partnership NHS Trust,19/05/21,NURSE - BAND 2 - AGENCY,Wakerley Ward,HCL NURSING,HNSI0000688,2504.11
Department of Health,Leicestershire Partnership NHS Trust,19/05/21,NURSE - BAND 5 - AGENCY,Wakerley Ward,HCL NURSING,HNSI0000688,6166.12
Department of Health,Leicestershire Partnership NHS Trust,19/05/21,NURSE - BAND 2 - AGENCY,Welford Ward,HCL NURSING,HNSI0000688,316.33
Department of Health,Leicestershire Partnership NHS Trust,19/05/21,FP10'S,Adult City Drugs,NHS BUS SERVICES AUTHORITY,1000069210,38528.88
Department of Health,Leicestershire Partnership NHS Trust,19/05/21,FP10'S,Adult County Drugs,NHS BUS SERVICES AUTHORITY,1000069210,25152.31
Department of Health,Leicestershire Partnership NHS Trust,19/05/21,FP10'S,Adult County North West Leicestershire CMHT,NHS BUS SERVICES AUTHORITY,1000069210,3.13
Department of Health,Leicestershire Partnership NHS Trust,19/05/21,FP10'S,CAMHS Outpatients,NHS BUS SERVICES AUTHORITY,1000069210,23249.39
Department of Health,Leicestershire Partnership NHS Trust,19/05/21,FP10'S,Children Services Medical,NHS BUS SERVICES AUTHORITY,1000069210,10219.88
Department of Health,Leicestershire Partnership NHS Trust,19/05/21,FP10'S,Dementia Related Drugs and Investigations,NHS BUS SERVICES AUTHORITY,1000069210,4216.40
Department of Health,Leicestershire Partnership NHS Trust,19/05/21,FP10'S,Eating Disorders Outpatient Service,NHS BUS SERVICES AUTHORITY,1000069210,1477.82
Department of Health,Leicestershire Partnership NHS Trust,19/05/21,FP10'S,Evington Centre,NHS BUS SERVICES AUTHORITY,1000069210,3.17
Department of Health,Leicestershire Partnership NHS Trust,19/05/21,FP10'S,Forensic Services - Community,NHS BUS SERVICES AUTHORITY,1000069210,248.37
Department of Health,Leicestershire Partnership NHS Trust,19/05/21,FP10'S,LOROS Pharmacy,NHS BUS SERVICES AUTHORITY,1000069210,498.12
Department of Health,Leicestershire Partnership NHS Trust,19/05/21,FP10'S,Liason Psychiatry Service,NHS BUS SERVICES AUTHORITY,1000069210,59.21
Department of Health,Leicestershire Partnership NHS Trust,19/05/21,FP10'S,Lough Swithland Ward,NHS BUS SERVICES AUTHORITY,1000069210,46.47
Department of Health,Leicestershire Partnership NHS Trust,19/05/21,FP10'S,PIER Team - Early Intervention Services,NHS BUS SERVICES AUTHORITY,1000069210,15150.91
Department of Health,Leicestershire Partnership NHS Trust,19/05/21,FP10'S,Snr Med Staff (Inc Med Reps),NHS BUS SERVICES AUTHORITY,1000069210,4210.57
Department of Health,Leicestershire Partnership NHS Trust,21/05/21,Gas,"Beaumont Leys Health Centre (P94, LPT)",TOTAL GAS & POWER LTD,235564147/21,550.03
Department of Health,Leicestershire Partnership NHS Trust,21/05/21,Gas,"Bradgate Unit (including Glenvale day Unit) (P7, LPT)",TOTAL GAS & POWER LTD,235564147/21,13921.74
Department of Health,Leicestershire Partnership NHS Trust,21/05/21,Gas,Bridge Park Plaza - First Floor (LPT),TOTAL GAS & POWER LTD,235564147/21,1771.58
Department of Health,Leicestershire Partnership NHS Trust,21/05/21,Gas,"Bridge Park Road - Units 2 and 3 (P148, LPT)",TOTAL GAS & POWER LTD,235564147/21,247.71
Department of Health,Leicestershire Partnership NHS Trust,21/05/21,Gas,"Coalville Community Hospital (P138, LPT)",TOTAL GAS & POWER LTD,235564147/21,6985.16
Department of Health,Leicestershire Partnership NHS Trust,21/05/21,Gas,"Coalville Health Centre (P121, LPT)",TOTAL GAS & POWER LTD,235564147/21,508.27
Department of Health,Leicestershire Partnership NHS Trust,21/05/21,Gas,"Evington Centre (P6, LPT)",TOTAL GAS & POWER LTD,235564147/21,857.12
Department of Health,Leicestershire Partnership NHS Trust,21/05/21,Gas,"Farm Lodge (P34, LPT)",TOTAL GAS & POWER LTD,235564147/21,399.84
Department of Health,Leicestershire Partnership NHS Trust,21/05/21,Gas,"Feilding Palmer Hospital (Lutterworth) (P131, LPT)",TOTAL GAS & POWER LTD,235564147/21,1241.12
Department of Health,Leicestershire Partnership NHS Trust,21/05/21,Gas,"Frith Cottages 3 & 4 (P36, LPT)",TOTAL GAS & POWER LTD,235564147/21,141.57
Department of Health,Leicestershire Partnership NHS Trust,21/05/21,Gas,HIS,TOTAL GAS & POWER LTD,235564147/21,235.45
Department of Health,Leicestershire Partnership NHS Trust,21/05/21,Gas,"Hawthorne Centre - Coalville (P14, LPT)",TOTAL GAS & POWER LTD,235564147/21,422.84
Department of Health,Leicestershire Partnership NHS Trust,21/05/21,Gas,"Hinckley and Bosworth Community Hospital (Sunnyside) (P133, LPT)",TOTAL GAS & POWER LTD,235564147/21,4987.36
Department of Health,Leicestershire Partnership NHS Trust,21/05/21,Gas,"Hynca Lodge (P33, LPT)",TOTAL GAS & POWER LTD,235564147/21,381.58
Department of Health,Leicestershire Partnership NHS Trust,21/05/21,Gas,"LGH - Gwendolen House (P4, LPT)",TOTAL GAS & POWER LTD,235564147/21,1400.02
Department of Health,Leicestershire Partnership NHS Trust,21/05/21,Gas,"Loughborough Hospital (P136, LPT)",TOTAL GAS & POWER LTD,235564147/21,13595.21
Department of Health,Leicestershire Partnership NHS Trust,21/05/21,Gas,Mawson House (LPT),TOTAL GAS & POWER LTD,235564147/21,2431.48
Department of Health,Leicestershire Partnership NHS Trust,21/05/21,Gas,"Mett Centre (P49, LPT)",TOTAL GAS & POWER LTD,235564147/21,254.89
Department of Health,Leicestershire Partnership NHS Trust,21/05/21,Gas,"Narborough Health Centre (P117, LPT)",TOTAL GAS & POWER LTD,235564147/21,403.94
Department of Health,Leicestershire Partnership NHS Trust,21/05/21,Gas,"Neville Centre - LGH (was DSC) (P147, LPT)",TOTAL GAS & POWER LTD,235564147/21,752.58
Department of Health,Leicestershire Partnership NHS Trust,21/05/21,Gas,"OSL House (P54, LPT)",TOTAL GAS & POWER LTD,235564147/21,629.18
Department of Health,Leicestershire Partnership NHS Trust,21/05/21,Gas,"Orchard Resource Centre (P15, LPT)",TOTAL GAS & POWER LTD,235564147/21,585.46
Department of Health,Leicestershire Partnership NHS Trust,21/05/21,Gas,"Rubicon Close 3 (P56, LPT)",TOTAL GAS & POWER LTD,235564147/21,114.43
Department of Health,Leicestershire Partnership NHS Trust,21/05/21,Gas,"Rutland Memorial Hospital (P134, LPT)",TOTAL GAS & POWER LTD,235564147/21,1491.00
Department of Health,Leicestershire Partnership NHS Trust,21/05/21,Gas,"Shepshed Health Centre (P123, LPT)",TOTAL GAS & POWER LTD,235564147/21,477.54
Department of Health,Leicestershire Partnership NHS Trust,21/05/21,Gas,"Springfield Road Health Centre (P92, LPT)",TOTAL GAS & POWER LTD,235564147/21,491.19
Department of Health,Leicestershire Partnership NHS Trust,21/05/21,Gas,"Stewart House (P61, LPT)",TOTAL GAS & POWER LTD,235564147/21,2358.59
Department of Health,Leicestershire Partnership NHS Trust,21/05/21,Gas,"Swithland House - London Road 352 (P44, LPT)",TOTAL GAS & POWER LTD,235564147/21,851.16
Department of Health,Leicestershire Partnership NHS Trust,21/05/21,Gas,"The Agnes Unit (AKA Assessment and Treatment Centre) (P85, LPT)",TOTAL GAS & POWER LTD,235564147/21,2633.79
Department of Health,Leicestershire Partnership NHS Trust,21/05/21,Gas,The Beacon,TOTAL GAS & POWER LTD,235564147/21,1254.94
Department of Health,Leicestershire Partnership NHS Trust,21/05/21,Gas,"The Cedars (P19, LPT)",TOTAL GAS & POWER LTD,235564147/21,307.90
Department of Health,Leicestershire Partnership NHS Trust,21/05/21,Gas,"The Grange 1 (P4, LPT)",TOTAL GAS & POWER LTD,235564147/21,128.87
Department of Health,Leicestershire Partnership NHS Trust,21/05/21,Gas,"The Grange 2 (P41, LPT)",TOTAL GAS & POWER LTD,235564147/21,180.18
Department of Health,Leicestershire Partnership NHS Trust,21/05/21,Gas,"The Willows - Cordelia Close (P22, LPT)",TOTAL GAS & POWER LTD,235564147/21,2309.26
Department of Health,Leicestershire Partnership NHS Trust,21/05/21,Gas,"Valentine Centre (P3, LPT)",TOTAL GAS & POWER LTD,235564147/21,699.78
Department of Health,Leicestershire Partnership NHS Trust,21/05/21,Gas,"Westcotes Group -Westcotes House (P78, LPT)",TOTAL GAS & POWER LTD,235564147/21,891.31
Department of Health,Leicestershire Partnership NHS Trust,21/05/21,Gas,"Winstanley Drive Health Centre (P8, LPT)",TOTAL GAS & POWER LTD,235564147/21,458.41
Department of Health,Leicestershire Partnership NHS Trust,21/05/21,WIP Project Not in BS - Buildings excl Dwellings,Work in Progress,TILBURY DOUGLAS CONSTRUCTION LTD,TMP01926,73346.58
Department of Health,Leicestershire Partnership NHS Trust,21/05/21,WIP Project Not in BS - Buildings excl Dwellings,Work in Progress,TILBURY DOUGLAS CONSTRUCTION LTD,TMP01927,44307.41
Department of Health,Leicestershire Partnership NHS Trust,21/05/21,Rent,"St Peters Health Center (Part 1st and 2nd floors) (P66, LPT)",LEICESTER LIFT CO,LEP1/SI0762,27433.45
Department of Health,Leicestershire Partnership NHS Trust,21/05/21,Services / Recharges from NHS Trusts,Inter Unit I & E Distribution,UHL NHS TRUST (RWE),L0250681,144898.59
Department of Health,Leicestershire Partnership NHS Trust,24/05/21,Crs_NHS_LT1y -Resus Inventory Supplied.,Balance Sheet Collection,SUPPLY CHAIN CO LTD,1122029276,40486.78
Department of Health,Leicestershire Partnership NHS Trust,24/05/21,Leased / Hired Vehicles,Assertive Outreach Services,AUTOMOTIVE LEASING LTD,508403756,15.00
Department of Health,Leicestershire Partnership NHS Trust,24/05/21,Leased / Hired Vehicles,Autism,AUTOMOTIVE LEASING LTD,508403756,638.96
Department of Health,Leicestershire Partnership NHS Trust,24/05/21,Prep_ LT1y -Prepayments Lease Cars,Balance Sheet Collection,AUTOMOTIVE LEASING LTD,508403756,25931.52
Department of Health,Leicestershire Partnership NHS Trust,24/05/21,Trade_Drs_LT1y -Lease Cars Invoicing Contrl Ac.,Balance Sheet Collection,AUTOMOTIVE LEASING LTD,508403756,345.00
Department of Health,Leicestershire Partnership NHS Trust,24/05/21,Leased / Hired Vehicles,CAMHS Inpatient Service,AUTOMOTIVE LEASING LTD,508403756,35.10
Department of Health,Leicestershire Partnership NHS Trust,24/05/21,Leased / Hired Vehicles,COVID 19,AUTOMOTIVE LEASING LTD,508403756,472.36
Department of Health,Leicestershire Partnership NHS Trust,24/05/21,Leased / Hired Vehicles,Children's Speech Therapy,AUTOMOTIVE LEASING LTD,508403756,15.00
Department of Health,Leicestershire Partnership NHS Trust,24/05/21,Leased / Hired Vehicles,"East Planned Care - Melton,Syston,Rutland",AUTOMOTIVE LEASING LTD,508403756,15.00
Department of Health,Leicestershire Partnership NHS Trust,24/05/21,Leased / Hired Vehicles,"East Planned Care - Oadby,Wigston & Harborough",AUTOMOTIVE LEASING LTD,508403756,10.00
Department of Health,Leicestershire Partnership NHS Trust,24/05/21,Leased / Hired Vehicles,HIS Management Team,AUTOMOTIVE LEASING LTD,508403756,15.00
Department of Health,Leicestershire Partnership NHS Trust,24/05/21,Leased / Hired Vehicles,Heart Failure Service,AUTOMOTIVE LEASING LTD,508403756,64.68
Department of Health,Leicestershire Partnership NHS Trust,24/05/21,Leased / Hired Vehicles,Integrated Specialist Palliative Care Team,AUTOMOTIVE LEASING LTD,508403756,222.54
Department of Health,Leicestershire Partnership NHS Trust,24/05/21,Leased / Hired Vehicles,MHSOP Medical Staffing,AUTOMOTIVE LEASING LTD,508403756,10.00
Department of Health,Leicestershire Partnership NHS Trust,24/05/21,Leased / Hired Vehicles,Mill Lodge,AUTOMOTIVE LEASING LTD,508403756,516.89
Department of Health,Leicestershire Partnership NHS Trust,24/05/21,Leased / Hired Vehicles,West Planned Care  - Charnwood Hub,AUTOMOTIVE LEASING LTD,508403756,691.96
Department of Health,Leicestershire Partnership NHS Trust,24/05/21,Leased / Hired Vehicles,West Planned Care  - Hinckley Hub,AUTOMOTIVE LEASING LTD,508403756,104.42
Department of Health,Leicestershire Partnership NHS Trust,24/05/21,Leased / Hired Vehicles,West Planned Care  - Hinckley Hub - Therapy,AUTOMOTIVE LEASING LTD,508403756,10.00
Department of Health,Leicestershire Partnership NHS Trust,25/05/21,Rent,"OSL House (P54, LPT)",CABOT TRUSTEES LTD,064,41700.00
Department of Health,Leicestershire Partnership NHS Trust,25/05/21,Gas,"Beaumont Leys Health Centre (P94, LPT)",TOTAL GAS & POWER LTD,238046319/21,574.52
Department of Health,Leicestershire Partnership NHS Trust,25/05/21,Gas,"Bradgate Unit (including Glenvale day Unit) (P7, LPT)",TOTAL GAS & POWER LTD,238046319/21,43396.63
Department of Health,Leicestershire Partnership NHS Trust,25/05/21,Gas,Bridge Park Plaza - First Floor (LPT),TOTAL GAS & POWER LTD,238046319/21,1180.40
Department of Health,Leicestershire Partnership NHS Trust,25/05/21,Gas,"Bridge Park Road - Units 2 and 3 (P148, LPT)",TOTAL GAS & POWER LTD,238046319/21,252.85
Department of Health,Leicestershire Partnership NHS Trust,25/05/21,Gas,"Coalville Community Hospital (P138, LPT)",TOTAL GAS & POWER LTD,238046319/21,6457.24
Department of Health,Leicestershire Partnership NHS Trust,25/05/21,Gas,"Coalville Health Centre (P121, LPT)",TOTAL GAS & POWER LTD,238046319/21,504.55
Department of Health,Leicestershire Partnership NHS Trust,25/05/21,Gas,"Evington Centre (P6, LPT)",TOTAL GAS & POWER LTD,238046319/21,1026.49
Department of Health,Leicestershire Partnership NHS Trust,25/05/21,Gas,"Farm Lodge (P34, LPT)",TOTAL GAS & POWER LTD,238046319/21,177.91
Department of Health,Leicestershire Partnership NHS Trust,25/05/21,Gas,"Feilding Palmer Hospital (Lutterworth) (P131, LPT)",TOTAL GAS & POWER LTD,238046319/21,1233.20
Department of Health,Leicestershire Partnership NHS Trust,25/05/21,Gas,"Frith Cottages 3 & 4 (P36, LPT)",TOTAL GAS & POWER LTD,238046319/21,189.40
Department of Health,Leicestershire Partnership NHS Trust,25/05/21,Gas,HIS,TOTAL GAS & POWER LTD,238046319/21,216.28
Department of Health,Leicestershire Partnership NHS Trust,25/05/21,Gas,"Hawthorne Centre - Coalville (P14, LPT)",TOTAL GAS & POWER LTD,238046319/21,363.13
Department of Health,Leicestershire Partnership NHS Trust,25/05/21,Gas,"Hinckley and Bosworth Community Hospital (Sunnyside) (P133, LPT)",TOTAL GAS & POWER LTD,238046319/21,4941.43
Department of Health,Leicestershire Partnership NHS Trust,25/05/21,Gas,"Hynca Lodge (P33, LPT)",TOTAL GAS & POWER LTD,238046319/21,343.21
Department of Health,Leicestershire Partnership NHS Trust,25/05/21,Gas,"LGH - Gwendolen House (P4, LPT)",TOTAL GAS & POWER LTD,238046319/21,280.04
Department of Health,Leicestershire Partnership NHS Trust,25/05/21,Gas,"Loughborough Hospital (P136, LPT)",TOTAL GAS & POWER LTD,238046319/21,9731.35
Department of Health,Leicestershire Partnership NHS Trust,25/05/21,Gas,Mawson House (LPT),TOTAL GAS & POWER LTD,238046319/21,40.98
Department of Health,Leicestershire Partnership NHS Trust,25/05/21,Gas,"Mett Centre (P49, LPT)",TOTAL GAS & POWER LTD,238046319/21,260.10
Department of Health,Leicestershire Partnership NHS Trust,25/05/21,Gas,"Narborough Health Centre (P117, LPT)",TOTAL GAS & POWER LTD,238046319/21,411.12
Department of Health,Leicestershire Partnership NHS Trust,25/05/21,Gas,"Neville Centre - LGH (was DSC) (P147, LPT)",TOTAL GAS & POWER LTD,238046319/21,707.33
Department of Health,Leicestershire Partnership NHS Trust,25/05/21,Gas,"OSL House (P54, LPT)",TOTAL GAS & POWER LTD,238046319/21,354.12
Department of Health,Leicestershire Partnership NHS Trust,25/05/21,Gas,"Orchard Resource Centre (P15, LPT)",TOTAL GAS & POWER LTD,238046319/21,520.76
Department of Health,Leicestershire Partnership NHS Trust,25/05/21,Gas,"Rubicon Close 3 (P56, LPT)",TOTAL GAS & POWER LTD,238046319/21,91.29
Department of Health,Leicestershire Partnership NHS Trust,25/05/21,Gas,"Rutland Memorial Hospital (P134, LPT)",TOTAL GAS & POWER LTD,238046319/21,1670.77
Department of Health,Leicestershire Partnership NHS Trust,25/05/21,Gas,"Shepshed Health Centre (P123, LPT)",TOTAL GAS & POWER LTD,238046319/21,483.44
Department of Health,Leicestershire Partnership NHS Trust,25/05/21,Gas,"Springfield Road Health Centre (P92, LPT)",TOTAL GAS & POWER LTD,238046319/21,415.06
Department of Health,Leicestershire Partnership NHS Trust,25/05/21,Gas,"Stewart House (P61, LPT)",TOTAL GAS & POWER LTD,238046319/21,2436.63
Department of Health,Leicestershire Partnership NHS Trust,25/05/21,Gas,"Swithland House - London Road 352 (P44, LPT)",TOTAL GAS & POWER LTD,238046319/21,729.77
Department of Health,Leicestershire Partnership NHS Trust,25/05/21,Gas,"The Agnes Unit (AKA Assessment and Treatment Centre) (P85, LPT)",TOTAL GAS & POWER LTD,238046319/21,2649.86
Department of Health,Leicestershire Partnership NHS Trust,25/05/21,Gas,The Beacon,TOTAL GAS & POWER LTD,238046319/21,1425.07
Department of Health,Leicestershire Partnership NHS Trust,25/05/21,Gas,"The Cedars (P19, LPT)",TOTAL GAS & POWER LTD,238046319/21,247.85
Department of Health,Leicestershire Partnership NHS Trust,25/05/21,Gas,"The Grange 1 (P4, LPT)",TOTAL GAS & POWER LTD,238046319/21,238.37
Department of Health,Leicestershire Partnership NHS Trust,25/05/21,Gas,"The Grange 2 (P41, LPT)",TOTAL GAS & POWER LTD,238046319/21,134.74
Department of Health,Leicestershire Partnership NHS Trust,25/05/21,Gas,"The Willows - Cordelia Close (P22, LPT)",TOTAL GAS & POWER LTD,238046319/21,2343.28
Department of Health,Leicestershire Partnership NHS Trust,25/05/21,Gas,"Valentine Centre (P3, LPT)",TOTAL GAS & POWER LTD,238046319/21,1472.69
Department of Health,Leicestershire Partnership NHS Trust,25/05/21,Gas,"Westcotes Group -Westcotes House (P78, LPT)",TOTAL GAS & POWER LTD,238046319/21,900.42
Department of Health,Leicestershire Partnership NHS Trust,25/05/21,Gas,"Winstanley Drive Health Centre (P8, LPT)",TOTAL GAS & POWER LTD,238046319/21,434.34
Department of Health,Leicestershire Partnership NHS Trust,26/05/21,Computer Software,Director of HR & OD,SOFTCAT PLC,INV02940168,134778.00
Department of Health,Leicestershire Partnership NHS Trust,26/05/21,Medical & Surgical Equipment,Medical Devices Maintenance (LPT),HENRY SCHEIN MEDICAL,RI65689294,43402.80
Department of Health,Leicestershire Partnership NHS Trust,27/05/21,Nurse - Band 6 -Agency,CAMHS HUB / CAP,HCL NURSING,HNSI0000689,3368.13
Department of Health,Leicestershire Partnership NHS Trust,27/05/21,NURSE - BAND 2 - AGENCY,CAMHS Inpatient Service,HCL NURSING,HNSI0000689,13566.08
Department of Health,Leicestershire Partnership NHS Trust,27/05/21,NURSE - BAND 5 - AGENCY,CAMHS Inpatient Service,HCL NURSING,HNSI0000689,466.15
Department of Health,Leicestershire Partnership NHS Trust,27/05/21,Nurse - Band 6 -Agency,CAMHS Waiting List Monies,HCL NURSING,HNSI0000689,546.10
Department of Health,Leicestershire Partnership NHS Trust,27/05/21,NURSE - BAND 2 - AGENCY,Langley Ward ED Inpatient Service,HCL NURSING,HNSI0000689,643.35
Department of Health,Leicestershire Partnership NHS Trust,27/05/21,NURSE - BAND 5 - AGENCY,Langley Ward ED Inpatient Service,HCL NURSING,HNSI0000689,3738.44
Department of Health,Leicestershire Partnership NHS Trust,27/05/21,Nurse - Band 6 -Agency,AMH - Central Access Point,HCL NURSING,HNSI0000692,1338.17
Department of Health,Leicestershire Partnership NHS Trust,27/05/21,Nurse - Band 6 -Agency,Adult City East CMHT - Merlyn Vaz,HCL NURSING,HNSI0000692,1336.97
Department of Health,Leicestershire Partnership NHS Trust,27/05/21,Nurse - Band 6 -Agency,Adult County Charnwood CMHT - Loughborough Base,HCL NURSING,HNSI0000692,2691.60
Department of Health,Leicestershire Partnership NHS Trust,27/05/21,Nurse - Band 6 -Agency,Adult County West Leicestershire CMHT,HCL NURSING,HNSI0000692,1069.97
Department of Health,Leicestershire Partnership NHS Trust,27/05/21,NURSE - BAND 2 - AGENCY,Agnes Unit Management,HCL NURSING,HNSI0000692,12778.76
Department of Health,Leicestershire Partnership NHS Trust,27/05/21,NURSE - BAND 5 - AGENCY,Agnes Unit Management,HCL NURSING,HNSI0000692,5452.25
Department of Health,Leicestershire Partnership NHS Trust,27/05/21,NURSE - BAND 2 - AGENCY,Ashby Ward (Bradgate Unit),HCL NURSING,HNSI0000692,459.80
Department of Health,Leicestershire Partnership NHS Trust,27/05/21,NURSE - BAND 5 - AGENCY,Ashby Ward (Bradgate Unit),HCL NURSING,HNSI0000692,329.84
Department of Health,Leicestershire Partnership NHS Trust,27/05/21,NURSE - BAND 2 - AGENCY,Aston Ward (Bradgate Unit),HCL NURSING,HNSI0000692,1231.49
Department of Health,Leicestershire Partnership NHS Trust,27/05/21,NURSE - BAND 2 - AGENCY,Beaumont Ward - Bradgate Unit,HCL NURSING,HNSI0000692,2081.46
Department of Health,Leicestershire Partnership NHS Trust,27/05/21,NURSE - BAND 5 - AGENCY,Beaumont Ward - Bradgate Unit,HCL NURSING,HNSI0000692,1215.08
Department of Health,Leicestershire Partnership NHS Trust,27/05/21,NURSE - BAND 2 - AGENCY,Belvoir Psychiatric Intensive Care Unit,HCL NURSING,HNSI0000692,1491.44
Department of Health,Leicestershire Partnership NHS Trust,27/05/21,NURSE - BAND 5 - AGENCY,Belvoir Psychiatric Intensive Care Unit,HCL NURSING,HNSI0000692,392.91
Department of Health,Leicestershire Partnership NHS Trust,27/05/21,Nurse - Band 6 -Agency,Crisis Resolution,HCL NURSING,HNSI0000692,5516.97
Department of Health,Leicestershire Partnership NHS Trust,27/05/21,NURSE - BAND 2 - AGENCY,Griffin Ward (HPC),HCL NURSING,HNSI0000692,2934.72
Department of Health,Leicestershire Partnership NHS Trust,27/05/21,NURSE - BAND 2 - AGENCY,Heather Ward,HCL NURSING,HNSI0000692,646.44
Department of Health,Leicestershire Partnership NHS Trust,27/05/21,NURSE - BAND 2 - AGENCY,Maple Ward,HCL NURSING,HNSI0000692,213.26
Department of Health,Leicestershire Partnership NHS Trust,27/05/21,Nurse - Band 6 -Agency,Mental Health Triage Team,HCL NURSING,HNSI0000692,1504.09
Department of Health,Leicestershire Partnership NHS Trust,27/05/21,NURSE - BAND 2 - AGENCY,Mill Lodge,HCL NURSING,HNSI0000692,1201.51
Department of Health,Leicestershire Partnership NHS Trust,27/05/21,NURSE - BAND 5 - AGENCY,Mill Lodge,HCL NURSING,HNSI0000692,1049.58
Department of Health,Leicestershire Partnership NHS Trust,27/05/21,NURSE - BAND 2 - AGENCY,Outreach,HCL NURSING,HNSI0000692,3859.29
Department of Health,Leicestershire Partnership NHS Trust,27/05/21,NURSE - BAND 2 - AGENCY,Phoenix Ward (HPC),HCL NURSING,HNSI0000692,983.76
Department of Health,Leicestershire Partnership NHS Trust,27/05/21,NURSE - BAND 5 - AGENCY,Phoenix Ward (HPC),HCL NURSING,HNSI0000692,844.69
Department of Health,Leicestershire Partnership NHS Trust,27/05/21,NURSE - BAND 5 - AGENCY,Place Of Safety Assessment Unit,HCL NURSING,HNSI0000692,989.51
Department of Health,Leicestershire Partnership NHS Trust,27/05/21,NURSE - BAND 5 - AGENCY,Stewart House,HCL NURSING,HNSI0000692,1182.24
Department of Health,Leicestershire Partnership NHS Trust,27/05/21,NURSE - BAND 2 - AGENCY,Thornton Ward - Bradgate Unit,HCL NURSING,HNSI0000692,349.46
Department of Health,Leicestershire Partnership NHS Trust,27/05/21,NURSE - BAND 2 - AGENCY,Watermead Ward (Bradgate Unit),HCL NURSING,HNSI0000692,426.52
Department of Health,Leicestershire Partnership NHS Trust,27/05/21,NURSE - BAND 5 - AGENCY,Watermead Ward (Bradgate Unit),HCL NURSING,HNSI0000692,669.81
Department of Health,Leicestershire Partnership NHS Trust,27/05/21,NURSE - BAND 5 - AGENCY,Beechwood Ward,HCL NURSING,HNSI0000693,6804.53
Department of Health,Leicestershire Partnership NHS Trust,27/05/21,NURSE - BAND 5 - AGENCY,City Planned Care - East,HCL NURSING,HNSI0000693,15214.06
Department of Health,Leicestershire Partnership NHS Trust,27/05/21,NURSE - BAND 5 - AGENCY,City Planned Care - West,HCL NURSING,HNSI0000693,13361.53
Department of Health,Leicestershire Partnership NHS Trust,27/05/21,Nurse - Band 6 -Agency,City West CMHT MHSOP,HCL NURSING,HNSI0000693,1906.97
Department of Health,Leicestershire Partnership NHS Trust,27/05/21,NURSE - BAND 2 - AGENCY,Clarendon Ward,HCL NURSING,HNSI0000693,3269.65
Department of Health,Leicestershire Partnership NHS Trust,27/05/21,NURSE - BAND 5 - AGENCY,Clarendon Ward,HCL NURSING,HNSI0000693,2542.88
Department of Health,Leicestershire Partnership NHS Trust,27/05/21,NURSE - BAND 2 - AGENCY,Coalville Snibston Ward,HCL NURSING,HNSI0000693,453.60
Department of Health,Leicestershire Partnership NHS Trust,27/05/21,NURSE - BAND 5 - AGENCY,Coalville Snibston Ward,HCL NURSING,HNSI0000693,514.85
Department of Health,Leicestershire Partnership NHS Trust,27/05/21,NURSE - BAND 2 - AGENCY,Coalville Ward 2,HCL NURSING,HNSI0000693,491.15
Department of Health,Leicestershire Partnership NHS Trust,27/05/21,NURSE - BAND 2 - AGENCY,Coleman Ward,HCL NURSING,HNSI0000693,5065.29
Department of Health,Leicestershire Partnership NHS Trust,27/05/21,NURSE - BAND 5 - AGENCY,Coleman Ward,HCL NURSING,HNSI0000693,2785.68
Department of Health,Leicestershire Partnership NHS Trust,27/05/21,NURSE - BAND 2 - AGENCY,Dalgliesh Ward,HCL NURSING,HNSI0000693,405.48
Department of Health,Leicestershire Partnership NHS Trust,27/05/21,NURSE - BAND 5 - AGENCY,Dalgliesh Ward,HCL NURSING,HNSI0000693,1310.03
Department of Health,Leicestershire Partnership NHS Trust,27/05/21,NURSE - BAND 2 - AGENCY,Gwendolen Ward,HCL NURSING,HNSI0000693,1908.61
Department of Health,Leicestershire Partnership NHS Trust,27/05/21,NURSE - BAND 5 - AGENCY,Gwendolen Ward,HCL NURSING,HNSI0000693,4769.98
Department of Health,Leicestershire Partnership NHS Trust,27/05/21,NURSE - BAND 2 - AGENCY,H&B Comm Hosp East Ward,HCL NURSING,HNSI0000693,213.26
Department of Health,Leicestershire Partnership NHS Trust,27/05/21,NURSE - BAND 5 - AGENCY,H&B Comm Hosp East Ward,HCL NURSING,HNSI0000693,4272.37
Department of Health,Leicestershire Partnership NHS Trust,27/05/21,NURSE - BAND 2 - AGENCY,H&B Comm Hosp North Ward,HCL NURSING,HNSI0000693,1031.69
Department of Health,Leicestershire Partnership NHS Trust,27/05/21,NURSE - BAND 5 - AGENCY,H&B Comm Hosp North Ward,HCL NURSING,HNSI0000693,1369.66
Department of Health,Leicestershire Partnership NHS Trust,27/05/21,NURSE - BAND 2 - AGENCY,Kirby Ward,HCL NURSING,HNSI0000693,117.42
Department of Health,Leicestershire Partnership NHS Trust,27/05/21,NURSE - BAND 5 - AGENCY,Kirby Ward,HCL NURSING,HNSI0000693,663.80
Department of Health,Leicestershire Partnership NHS Trust,27/05/21,NURSE - BAND 5 - AGENCY,Lough Swithland Ward,HCL NURSING,HNSI0000693,2116.40
Department of Health,Leicestershire Partnership NHS Trust,27/05/21,NURSE - BAND 5 - AGENCY,Non Recurrent 2012/13,HCL NURSING,HNSI0000693,37.52
Department of Health,Leicestershire Partnership NHS Trust,27/05/21,NURSE - BAND 2 - AGENCY,Rutland Ward Nursing,HCL NURSING,HNSI0000693,356.02
Department of Health,Leicestershire Partnership NHS Trust,27/05/21,NURSE - BAND 2 - AGENCY,St Lukes Stroke Ward,HCL NURSING,HNSI0000693,667.87
Department of Health,Leicestershire Partnership NHS Trust,27/05/21,NURSE - BAND 5 - AGENCY,St Lukes Stroke Ward,HCL NURSING,HNSI0000693,1868.62
Department of Health,Leicestershire Partnership NHS Trust,27/05/21,NURSE - BAND 2 - AGENCY,St Lukes Ward 3,HCL NURSING,HNSI0000693,1153.26
Department of Health,Leicestershire Partnership NHS Trust,27/05/21,NURSE - BAND 5 - AGENCY,St Lukes Ward 3,HCL NURSING,HNSI0000693,1129.47
Department of Health,Leicestershire Partnership NHS Trust,27/05/21,NURSE - BAND 2 - AGENCY,Wakerley Ward,HCL NURSING,HNSI0000693,2082.75
Department of Health,Leicestershire Partnership NHS Trust,27/05/21,NURSE - BAND 5 - AGENCY,Wakerley Ward,HCL NURSING,HNSI0000693,6451.79
Department of Health,Leicestershire Partnership NHS Trust,27/05/21,NURSE - BAND 2 - AGENCY,Welford Ward,HCL NURSING,HNSI0000693,180.17
